bitfinex/quotes_ETHUSD_20250724
["timestamp","ask_amount","ask_price","bid_price","bid_amount"]
[1753323981121,0.20859764,3646.4,3645.8,0.469]
[1753323981352,0.1368,3646.1,3645.9,0.8023]
[1753323981558,7.215,3646.0,3645.9,0.8023]
[1753323981857,4.215,3646.0,3645.9,0.8023]
[1753323982040,7.215,3646.0,3645.8,0.001]
[1753323982241,7.215,3646.0,3645.9,0.468]
[1753323982645,9.95773176,3646.0,3645.9,0.468]
[1753323982863,2.74280698,3645.9,3645.8,0.001]
[1753323983158,2.77709206,3645.9,3645.8,0.001]
[1753323983330,32.77709206,3645.9,3645.8,0.001]
[1753323983538,32.74280698,3645.9,3645.8,0.001]
[1753323986667,2.74280698,3645.9,3645.8,0.001]
[1753323987563,2.77709206,3645.9,3645.8,0.001]
[1753323989150,5.77709206,3645.9,3645.8,0.001]
[1753323989352,36.21280698,3645.9,3645.8,0.001]
[1753323989553,52.84143721,3645.9,3645.8,0.001]
[1753323989888,52.84259825,3645.9,3645.8,0.001]
[1753323990256,2.74295745,3645.7,3645.6,0.001]
[1753323990444,47.0921589,3645.7,3645.6,0.001]
[1753323990644,48.1203585,3645.7,3645.6,0.001]
[1753323991170,18.1203585,3645.7,3645.6,0.001]
[1753323991480,62.6203585,3645.7,3645.6,0.001]
[1753323992359,55.84654401,3645.7,3645.6,0.001]
[1753323993069,56.31654401,3645.7,3645.6,0.001]
[1753323993585,55.04844401,3645.7,3645.6,0.001]
[1753323993757,54.45595745,3645.7,3645.6,0.001]
[1753323994458,9.95595745,3645.7,3645.6,0.001]
[1753323994859,9.95595745,3645.7,3645.6,0.469]
[1753323995455,9.95595745,3645.7,3645.6,0.001]
[1753323996284,40.42595745,3645.7,3645.6,0.001]
[1753323996849,39.95595745,3645.7,3645.6,0.001]
[1753323997795,30.7632,3645.2,3644.9,0.001]
[1753323997995,6.55498422,3645.0,3644.9,0.001]
[1753323998292,35.74363476,3644.8,3643.9,0.7534]
[1753323998582,40.56441296,3644.8,3643.9,0.7534]
[1753323998769,40.56441296,3644.8,3643.9,1.2214]
[1753323998970,41.03441296,3644.8,3643.9,1.2214]
[1753323999351,40.44263476,3644.8,3643.9,1.2214]
[1753324001651,39.97063476,3644.8,3644.4,0.4501]
[1753324002394,39.97063476,3644.8,3643.9,0.7534]
[1753324002395,9.97063476,3644.8,3644.7,0.4511]
[1753324003690,9.97063476,3644.8,3644.7,0.001]
[1753324004112,39.97063476,3644.8,3644.7,0.001]
[1753324005485,40.42333476,3644.8,3644.7,0.001]
[1753324006369,40.72743476,3644.8,3644.7,0.001]
[1753324006569,41.18013476,3644.8,3644.7,0.001]
[1753324006961,40.72743476,3644.8,3644.7,0.001]
[1753324007167,39.97063476,3644.8,3644.7,0.001]
[1753324007460,39.96863476,3644.8,3644.7,0.001]
[1753324008713,40.42133476,3644.8,3644.7,0.001]
[1753324009154,10.42133476,3644.8,3644.7,0.001]
[1753324009311,40.42133476,3644.8,3644.7,0.001]
[1753324010053,11.20803476,3644.8,3644.7,0.001]
[1753324010254,36.98303476,3644.8,3644.7,0.001]
[1753324010425,41.20603476,3644.8,3644.7,0.001]
[1753324011036,11.20603476,3644.8,3644.7,0.001]
[1753324011240,41.20603476,3644.8,3644.7,0.001]
[1753324014370,11.20603476,3644.8,3644.7,0.001]
[1753324014522,41.20603476,3644.8,3644.7,0.001]
[1753324019179,41.79727862,3644.8,3644.7,0.001]
[1753324019979,11.79727862,3644.8,3644.7,0.001]
[1753324020180,40.55787862,3644.8,3644.7,0.001]
[1753324020368,39.96663476,3644.8,3644.7,0.001]
[1753324023710,39.95763476,3644.8,3644.7,0.4511]
[1753324024604,39.95763476,3644.8,3644.7,0.001]
[1753324025811,39.95563476,3644.8,3644.7,0.4511]
[1753324026172,35.74363476,3644.8,3644.7,0.4511]
[1753324026371,40.54781512,3644.8,3644.7,0.4511]
[1753324026607,35.74363476,3644.8,3644.7,0.4511]
[1753324027010,39.95563476,3644.8,3644.7,0.4511]
[1753324027226,9.95563476,3644.8,3644.7,0.4511]
[1753324028994,7.212,3644.8,3644.7,0.4511]
[1753324029232,9.95563476,3644.8,3644.7,0.4511]
[1753324029590,7.212,3644.8,3644.7,0.4511]
[1753324029796,9.95563476,3644.8,3644.7,0.4511]
[1753324030931,7.212,3644.8,3644.7,0.4511]
[1753324031132,9.95563476,3644.8,3644.7,0.4511]
[1753324033558,7.212,3644.8,3644.7,0.4511]
[1753324033865,7.207,3644.8,3644.7,0.4511]
[1753324044282,3.0,3644.8,3644.7,3.19481004]
[1753324044478,7.2,3644.8,3644.7,3.19481004]
[1753324044955,7.2,3644.8,3644.7,0.4511]
[1753324048719,3.0,3644.8,3644.7,3.61084394]
[1753324049015,0.002,3644.9,3644.8,3.50823476]
[1753324049222,0.002,3644.9,3644.8,3.96159436]
[1753324049718,0.002,3644.9,3644.8,3.94823476]
[1753324050816,4.198,3645.1,3645.0,2.74348422]
[1753324050817,3.88,3645.1,3645.0,2.74348422]
[1753324050995,3.88,3645.1,3645.0,5.55292218]
[1753324051197,0.002,3645.7,3645.5,0.8155]
[1753324051384,7.197,3645.6,3645.5,0.8155]
[1753324052118,7.197,3645.6,3645.5,1.2555]
[1753324052481,7.197,3645.6,3645.5,3.99860794]
[1753324052720,7.197,3645.6,3645.5,4.68647385]
[1753324055224,7.197,3645.6,3645.5,1.94336591]
[1753324055426,7.194,3645.6,3645.5,4.68647385]
[1753324055741,7.194,3645.6,3645.5,1.94336591]
[1753324056398,7.194,3645.6,3645.5,4.68647385]
[1753324058500,4.194,3645.6,3645.5,4.68647385]
[1753324060308,4.194,3645.6,3645.4,0.1368]
[1753324060506,4.191,3645.5,3645.4,2.87993239]
[1753324061004,4.191,3645.5,3645.4,3.34663239]
[1753324062567,0.002,3645.7,3645.4,3.34663239]
[1753324062728,4.191,3645.5,3645.4,3.34663239]
[1753324063240,4.191,3645.5,3645.4,4.03727777]
[1753324065270,0.002,3645.7,3645.6,2.74303269]
[1753324065444,7.191,3645.7,3645.6,3.53003269]
[1753324065644,7.191,3645.7,3645.6,3.99673269]
[1753324065994,7.191,3645.7,3645.6,0.4667]
[1753324066356,7.191,3645.7,3645.6,3.20973269]
[1753324066561,7.191,3645.7,3645.6,3.96646781]
[1753324067987,3.002,3645.7,3645.6,3.96646781]
[1753324068287,7.19,3645.7,3645.6,4.10326781]
[1753324069362,3.002,3645.7,3645.6,3.34653269]
[1753324069577,7.189,3645.7,3645.6,3.34653269]
[1753324069963,7.189,3645.7,3645.6,0.6035]
[1753324070162,7.189,3645.7,3645.6,0.1368]
[1753324070497,2.74318318,3645.4,3645.3,0.1368]
[1753324070797,2.74333796,3645.2,3644.7,0.1378]
[1753324070963,4.188,3645.1,3644.7,0.1378]
[1753324071497,4.188,3645.1,3644.8,2.7435904]
[1753324071683,4.188,3645.1,3644.7,0.6045]
[1753324072267,4.188,3645.1,3644.7,3.34820425]
[1753324072895,4.188,3645.1,3644.7,0.6045]
[1753324073102,4.28439355,3645.0,3644.7,0.1378]
[1753324073400,3.0,3644.8,3644.7,0.1378]
[1753324073765,3.47259543,3644.8,3644.7,0.001]
[1753324074164,3.0,3644.8,3644.7,0.001]
[1753324076237,0.1368,3644.9,3644.7,3.01929556]
[1753324076517,0.03429167,3645.2,3644.8,3.2102842]
[1753324076683,3.0,3645.4,3644.8,3.2102842]
[1753324076684,3.0,3645.0,3644.9,2.74355906]
[1753324078024,3.0,3645.0,3644.8,2.74362661]
[1753324078195,7.189,3644.9,3644.8,2.74362661]
[1753324078724,7.189,3644.9,3644.7,0.001]
[1753324078901,0.03429543,3644.8,3644.7,0.001]
[1753324079104,0.47259543,3644.8,3644.7,0.001]
[1753324080109,0.4383,3644.8,3644.7,0.001]
[1753324080305,7.3258,3644.9,3644.7,0.001]
[1753324081475,7.3258,3644.9,3644.7,2.74470906]
[1753324081603,7.3258,3644.9,3644.7,0.001]
[1753324082300,1.28069543,3644.8,3644.7,0.001]
[1753324082746,7.02433019,3644.8,3644.7,0.001]
[1753324083045,6.99003476,3644.8,3644.7,0.001]
[1753324083242,4.2464,3644.8,3644.7,0.001]
[1753324083443,4.28069543,3644.8,3644.7,0.001]
[1753324083644,4.2464,3644.8,3644.7,0.001]
[1753324084123,4.28069543,3644.8,3644.7,0.001]
[1753324084654,4.2464,3644.8,3644.7,0.001]
[1753324085646,3.0,3644.8,3644.7,0.001]
[1753324085942,7.188,3644.8,3644.7,0.001]
[1753324086108,3.0,3644.8,3644.7,0.78895472]
[1753324086305,7.188,3644.8,3644.7,4.02681004]
[1753324086927,7.188,3644.8,3644.7,1.2831]
[1753324087329,7.188,3644.8,3644.7,4.02681004]
[1753324090956,3.0,3644.8,3644.7,4.02681004]
[1753324091118,4.188,3644.8,3644.7,8.2886625]
[1753324091317,4.188,3644.8,3644.7,11.03237254]
[1753324091521,0.1388,3645.7,3645.2,2.74330865]
[1753324091735,3.0,3645.5,3645.2,2.74330865]
[1753324092051,3.0,3645.3,3645.2,2.74330865]
[1753324092237,3.0,3645.3,3645.1,2.74337861]
[1753324092417,4.188,3645.2,3645.1,3.30575123]
[1753324092617,4.188,3645.2,3645.1,3.77545123]
[1753324093847,4.188,3645.2,3645.1,1.03207262]
[1753324096325,4.188,3645.2,3645.1,1.03307262]
[1753324096752,4.188,3645.2,3645.1,3.77648157]
[1753324097154,4.188,3645.2,3645.1,1.03307262]
[1753324097352,4.188,3645.2,3645.1,3.77648157]
[1753324097552,0.002,3645.5,3645.4,2.74318318]
[1753324097862,7.189,3645.5,3645.4,1.35891062]
[1753324098061,7.189,3645.5,3645.4,1.49571062]
[1753324098266,7.189,3645.5,3645.4,1.96541062]
[1753324100969,7.189,3645.5,3645.4,4.7085938]
[1753324101278,7.189,3645.5,3645.4,1.96541062]
[1753324101969,7.189,3645.5,3645.4,4.7085938]
[1753324102169,3.002,3645.5,3645.4,4.7085938]
[1753324102371,7.189,3645.5,3645.4,4.7085938]
[1753324102570,7.189,3645.5,3645.4,1.96541062]
[1753324102780,7.189,3645.5,3645.4,4.7085938]
[1753324103180,3.002,3645.5,3645.4,4.7085938]
[1753324103379,7.189,3645.5,3645.4,1.96541062]
[1753324106348,3.002,3645.5,3645.4,4.7085938]
[1753324106582,7.189,3645.5,3645.4,1.96541062]
[1753324107362,7.189,3645.5,3645.4,0.6065]
[1753324107893,7.189,3645.5,3645.4,3.34968318]
[1753324109477,3.002,3645.5,3645.4,3.34968318]
[1753324109878,7.189,3645.5,3645.4,3.34968318]
[1753324111471,4.189,3645.5,3645.4,3.34968318]
[1753324111801,4.189,3645.5,3645.4,4.72226914]
[1753324113605,4.189,3645.5,3645.4,0.1368]
[1753324113818,8.3719,3645.5,3645.1,0.001]
[1753324113964,6.17564115,3645.4,3645.1,0.001]
[1753324114168,4.186,3645.3,3645.1,0.001]
[1753324114400,4.6184,3645.3,3645.1,0.001]
[1753324114980,0.7525,3645.5,3645.1,0.001]
[1753324115201,4.186,3645.4,3645.2,0.1368]
[1753324116107,4.186,3645.4,3645.2,2.88013335]
[1753324116811,4.186,3645.4,3645.2,0.1368]
[1753324117107,4.6184,3645.4,3645.2,0.1368]
[1753324119613,4.186,3645.4,3645.2,2.88010984]
[1753324119911,4.188,3645.4,3645.2,2.88010984]
[1753324122303,7.188,3645.4,3645.3,2.74325844]
[1753324122672,7.188,3645.4,3645.3,0.454]
[1753324123017,7.188,3645.4,3645.2,2.88010364]
[1753324123508,7.188,3645.4,3645.2,0.1368]
[1753324123827,7.188,3645.4,3645.2,2.88012064]
[1753324123986,7.188,3645.4,3645.2,2.88012638]
[1753324125921,7.188,3645.4,3645.2,0.1368]
[1753324126085,7.188,3645.4,3645.2,2.88012886]
[1753324126420,7.188,3645.4,3645.2,0.1368]
[1753324126582,7.188,3645.4,3645.2,2.88012438]
[1753324127543,7.188,3645.4,3645.2,0.1368]
[1753324127831,7.6394,3645.4,3645.2,0.1368]
[1753324128856,7.6394,3645.4,3645.2,2.88012992]
[1753324129020,7.188,3645.4,3645.2,2.88012992]
[1753324130018,7.188,3645.4,3645.3,2.74325844]
[1753324130225,7.188,3645.4,3645.2,2.88010313]
[1753324134528,7.188,3645.4,3645.2,0.1368]
[1753324135234,7.188,3645.4,3645.2,2.88013267]
[1753324135398,7.188,3645.4,3645.3,2.74325844]
[1753324136199,7.188,3645.4,3645.2,0.1368]
[1753324136200,7.188,3645.4,3645.2,2.88011279]
[1753324136400,3.002,3645.4,3645.3,2.74325844]
[1753324136634,7.187,3645.4,3645.3,2.74325844]
[1753324138856,7.187,3645.4,3645.2,2.88010246]
[1753324139717,7.187,3645.4,3645.3,3.19725844]
[1753324140134,3.002,3645.4,3645.3,3.19725844]
[1753324140448,7.187,3645.4,3645.3,3.19725844]
[1753324141143,3.002,3645.4,3645.3,2.74325844]
[1753324141311,7.187,3645.4,3645.3,3.98005844]
[1753324141512,7.187,3645.4,3645.3,4.73457067]
[1753324142751,7.187,3645.4,3645.3,1.99131223]
[1753324142951,7.187,3645.4,3645.3,1.2368]
[1753324143121,7.187,3645.4,3645.3,3.98005844]
[1753324148067,7.187,3645.4,3645.2,0.82065751]
[1753324148068,7.6384,3645.4,3645.2,0.1368]
[1753324148372,0.4514,3645.3,3645.2,2.88012429]
[1753324149255,7.187,3645.4,3645.3,2.74325844]
[1753324150270,7.6582,3645.4,3645.2,2.88012899]
[1753324151460,7.6582,3645.4,3645.3,2.74325844]
[1753324151774,7.6582,3645.4,3645.2,2.88012346]
[1753324152671,7.6582,3645.4,3645.2,0.1368]
[1753324152871,7.6582,3645.4,3645.2,2.88013085]
[1753324153848,7.6582,3645.4,3645.2,0.1368]
[1753324156580,7.6582,3645.4,3645.2,2.88012222]
[1753324157584,7.6582,3645.4,3645.2,0.1368]
[1753324158489,7.6582,3645.4,3645.2,2.8801241]
[1753324158644,7.6582,3645.4,3645.2,0.1368]
[1753324158844,7.6582,3645.4,3645.2,2.8801287]
[1753324159076,7.187,3645.4,3645.2,2.8801287]
[1753324159276,7.187,3645.4,3645.3,2.74325844]
[1753324159966,3.0,3645.3,3645.2,2.88008508]
[1753324160154,3.4712,3645.3,3645.2,2.88008508]
[1753324160355,3.4712,3645.3,3645.2,0.1368]
[1753324161085,3.4712,3645.3,3645.2,2.88013369]
[1753324161382,3.0,3645.3,3645.2,2.88013369]
[1753324162181,3.0,3645.3,3645.2,3.31583369]
[1753324164684,3.0,3645.3,3645.2,2.88013369]
[1753324167087,3.0,3645.3,3645.2,3.31583369]
[1753324167553,3.0,3645.3,3645.2,2.88013369]
[1753324171290,3.0,3645.3,3645.2,0.1368]
[1753324171672,3.0,3645.3,3645.2,2.88013369]
[1753324174203,3.0,3645.3,3645.2,3.31583369]
[1753324174497,3.0,3645.3,3645.2,2.88013369]
[1753324181805,0.002,3645.4,3645.2,2.88013369]
[1753324181970,7.182,3645.3,3645.2,2.88013369]
[1753324182372,7.182,3645.3,3645.2,0.1368]
[1753324183607,7.182,3645.3,3645.2,2.88013369]
[1753324184903,7.182,3645.3,3645.2,0.1368]
[1753324191920,7.182,3645.3,3645.2,2.88013369]
[1753324192287,3.0,3645.3,3645.2,3.48616529]
[1753324192489,3.0,3645.3,3645.2,11.03088199]
[1753324192490,7.181,3645.3,3645.2,11.03088199]
[1753324193228,7.181,3645.3,3645.2,9.44876972]
[1753324194205,7.181,3645.3,3645.2,5.93413603]
[1753324194402,7.181,3645.3,3645.2,5.47543603]
[1753324194926,7.181,3645.3,3645.2,7.61273812]
[1753324195324,7.181,3645.3,3645.2,2.88013369]
[1753324197530,7.181,3645.3,3645.2,0.1368]
[1753324198115,7.181,3645.3,3645.2,2.88013369]
[1753324198970,7.181,3645.3,3645.2,3.33883369]
[1753324199092,7.181,3645.3,3645.2,4.03034544]
[1753324202522,7.181,3645.3,3645.2,3.57164544]
[1753324202766,7.181,3645.3,3645.2,0.82831175]
[1753324202919,7.181,3645.3,3645.2,0.1368]
[1753324203429,36.54373369,3645.2,3645.1,0.001]
[1753324203636,37.01813369,3645.2,3645.1,0.001]
[1753324204718,37.61086306,3645.2,3645.1,0.001]
[1753324206070,0.8004,3645.2,3645.1,0.001]
[1753324206221,0.002,3645.3,3645.1,0.001]
[1753324206422,7.18,3645.2,3645.1,0.001]
[1753324206859,7.6544,3645.2,3645.1,0.001]
[1753324207353,7.18,3645.2,3645.1,0.001]
[1753324207964,7.18,3645.2,3645.1,2.74440895]
[1753324208124,7.18,3645.2,3645.1,0.001]
[1753324208855,7.18,3645.2,3645.1,2.74440895]
[1753324209056,7.18,3645.2,3645.1,4.44254583]
[1753324209756,3.0,3645.2,3645.1,4.44254583]
[1753324209956,7.179,3645.2,3645.1,4.44254583]
[1753324210526,0.002,3645.3,3645.1,4.44254583]
[1753324210527,0.002,3645.3,3645.2,2.74333369]
[1753324210738,7.181,3645.3,3645.2,3.19453369]
[1753324211282,7.181,3645.3,3645.2,4.00239164]
[1753324211283,3.002,3645.3,3645.2,4.00239164]
[1753324211466,4.181,3645.3,3645.2,10.31338985]
[1753324211627,4.181,3645.3,3645.2,10.45018985]
[1753324212324,0.002,3645.3,3645.2,10.45018985]
[1753324212520,1e-08,3645.3,3645.2,11.22808985]
[1753324212725,0.002,3645.4,3645.3,2.74325844]
[1753324212925,0.002,3645.4,3645.3,6.10798785]
[1753324217334,0.002,3645.4,3645.3,4.87888785]
[1753324217542,0.002,3645.4,3645.2,3.68799164]
[1753324217543,0.002,3645.4,3645.2,0.1368]
[1753324218043,1.2344,3645.3,3645.2,0.1368]
[1753324218354,0.002,3645.4,3645.3,2.74325844]
[1753324218728,0.002,3645.4,3645.3,3.19445844]
[1753324219064,0.002,3645.4,3645.3,4.78661335]
[1753324221172,0.002,3645.4,3645.3,5.54471335]
[1753324222804,1e-08,3645.4,3645.3,5.54471335]
[1753324225181,0.002,3645.9,3645.4,2.74318318]
[1753324225386,0.002,3645.9,3645.8,9.95798043]
[1753324225583,0.002,3645.9,3645.8,16.09842703]
[1753324225799,0.002,3645.9,3645.8,16.54962703]
[1753324227598,0.002,3646.3,3646.0,2.74273176]
[1753324227799,0.002,3646.3,3646.0,7.84396879]
[1753324228100,0.002,3646.3,3646.0,10.16796134]
[1753324229477,0.002,3646.3,3646.2,2.74258131]
[1753324229667,0.002,3646.3,3646.2,14.01801279]
[1753324229897,0.002,3646.3,3646.2,14.59267952]
[1753324230101,0.002,3646.3,3646.2,16.51482608]
[1753324230297,1e-08,3646.3,3646.2,16.51482608]
[1753324230804,0.002,3646.7,3646.3,3.5261061]
[1753324231003,0.002,3646.7,3646.3,3.9773061]
[1753324233619,0.002,3646.7,3646.3,3.99063749]
[1753324233821,0.002,3646.7,3646.3,6.38153246]
[1753324233992,0.002,3646.7,3646.3,6.36820107]
[1753324236519,0.002,3646.8,3646.7,3.54000528]
[1753324236821,0.002,3646.8,3646.7,14.03932736]
[1753324237004,0.002,3646.8,3646.7,14.16280349]
[1753324237210,0.002,3646.8,3646.7,14.61400349]
[1753324237408,0.002,3646.8,3646.7,16.62386854]
[1753324244036,0.002,3646.8,3646.7,12.44886854]
[1753324244229,0.002,3646.8,3646.7,16.62286854]
[1753324244811,0.002,3646.8,3646.7,4.88887033]
[1753324245014,0.4483,3646.8,3646.7,7.05300528]
[1753324246121,0.002,3646.8,3646.7,7.05300528]
[1753324247030,0.4483,3646.8,3646.7,7.05300528]
[1753324247418,0.002,3646.8,3646.7,7.05300528]
[1753324248133,0.4483,3646.8,3646.7,7.05300528]
[1753324248629,0.002,3646.8,3646.7,7.05300528]
[1753324253328,0.002,3646.8,3646.7,9.17976091]
[1753324253923,0.002,3646.8,3646.7,8.71056091]
[1753324255225,0.002,3646.8,3646.7,4.53656091]
[1753324255426,0.002,3646.8,3646.7,7.05200528]
[1753324255745,0.4483,3646.8,3646.7,7.05200528]
[1753324255949,0.4483,3646.8,3646.7,0.1368]
[1753324256120,0.4483,3646.8,3646.4,2.74241929]
[1753324256121,3.19047632,3646.8,3646.1,0.001]
[1753324256322,0.779,3646.7,3646.3,0.1368]
[1753324256632,0.4463,3646.6,3646.3,0.1368]
[1753324257226,0.4463,3646.6,3646.3,2.87925921]
[1753324257944,0.4463,3646.6,3646.4,2.74242022]
[1753324258118,0.4463,3646.6,3646.3,2.87929578]
[1753324259140,0.4463,3646.6,3646.5,2.74235568]
[1753324259443,0.4463,3646.6,3646.4,2.74241315]
[1753324260851,0.779,3646.7,3646.5,2.74235568]
[1753324261014,0.779,3646.7,3646.6,2.74228048]
[1753324261218,0.002,3646.8,3646.7,2.74220528]
[1753324261922,0.4483,3646.8,3646.5,0.1368]
[1753324262154,0.4463,3646.7,3646.6,2.74222459]
[1753324262338,0.4463,3646.7,3646.5,0.1368]
[1753324262548,0.4463,3646.7,3646.5,2.87915175]
[1753324262721,0.002,3646.8,3646.6,2.74228048]
[1753324263433,0.4463,3646.7,3646.5,2.87914147]
[1753324264655,0.4463,3646.6,3646.5,2.87914147]
[1753324265519,0.4463,3646.6,3646.5,2.87915568]
[1753324267551,0.4483,3646.8,3646.7,2.74220528]
[1753324267747,0.4463,3646.7,3646.6,2.74226018]
[1753324272126,0.4463,3646.7,3646.6,2.74326018]
[1753324273074,0.4463,3646.7,3646.6,0.001]
[1753324273258,1.2457,3646.7,3646.6,0.001]
[1753324273426,4.2457,3646.7,3646.6,0.001]
[1753324273627,4.27997756,3646.7,3646.6,0.001]
[1753324274252,7.02218284,3646.7,3646.6,0.001]
[1753324274451,7.12470528,3646.7,3646.6,0.001]
[1753324274672,4.3825,3646.7,3646.6,0.001]
[1753324275834,4.2457,3646.7,3646.6,0.001]
[1753324276162,3.7994,3646.7,3646.6,0.1378]
[1753324276459,4.257,3646.7,3646.6,0.1378]
[1753324278959,3.0,3646.7,3646.6,2.88008048]
[1753324283260,3.0,3646.7,3646.6,0.1378]
[1753324283461,0.002,3646.8,3646.7,2.74220528]
[1753324284246,0.002,3646.8,3646.7,4.38343368]
[1753324284559,0.002,3646.8,3646.7,5.19033368]
[1753324284770,0.002,3646.8,3646.7,5.20365755]
[1753324284925,0.002,3646.8,3646.7,5.19033368]
[1753324285133,0.002,3646.8,3646.7,5.20365755]
[1753324285329,0.002,3646.8,3646.7,5.19033368]
[1753324286154,0.002,3646.8,3646.7,5.20365755]
[1753324286940,0.002,3646.8,3646.7,9.92565755]
[1753324287128,0.002,3646.8,3646.7,9.91233368]
[1753324289939,0.042,3646.9,3646.8,4.06353008]
[1753324290142,0.042,3646.9,3646.8,12.3856547]
[1753324290351,0.042,3646.9,3646.8,12.50913271]
[1753324290758,0.002,3647.0,3646.9,3.29205489]
[1753324290991,0.002,3647.0,3646.9,8.73175489]
[1753324290992,1e-08,3647.0,3646.9,8.73175489]
[1753324291632,0.002,3647.5,3647.3,3.29175417]
[1753324291905,0.002,3647.5,3647.4,4.112479]
[1753324292204,0.042,3647.9,3647.8,4.05907836]
[1753324292372,0.042,3647.9,3647.8,14.54107657]
[1753324292571,0.042,3647.9,3647.8,15.12577657]
[1753324299076,0.042,3647.9,3647.8,15.12477657]
[1753324299322,0.042,3647.9,3647.8,17.18556118]
[1753324299611,0.042,3647.9,3647.8,15.96996118]
[1753324300112,0.5084,3647.9,3647.8,4.93896297]
[1753324300315,0.5084,3647.9,3647.8,7.04817836]
[1753324300517,0.042,3647.9,3647.8,13.35917657]
[1753324301174,0.042,3647.9,3647.8,13.83277657]
[1753324301376,0.042,3647.9,3647.8,7.04817836]
[1753324301597,0.5084,3647.9,3647.8,7.04717836]
[1753324301801,0.042,3647.9,3647.8,7.04717836]
[1753324302814,0.5084,3647.9,3647.8,7.04717836]
[1753324306338,0.042,3647.9,3647.8,10.50524259]
[1753324310395,0.002,3648.2,3648.1,3.29115292]
[1753324310600,0.002,3648.2,3648.1,7.04695292]
[1753324310796,0.4684,3648.2,3648.1,7.04695292]
[1753324311405,0.002,3648.2,3648.1,8.18676861]
[1753324311620,0.002,3648.2,3648.1,8.66036861]
[1753324312330,0.8272,3648.7,3648.1,8.66036861]
[1753324312331,0.002,3648.7,3648.3,3.29100265]
[1753324312534,0.002,3648.7,3648.6,10.37207549]
[1753324312732,0.002,3648.7,3648.6,16.59726976]
[1753324313100,0.002,3648.7,3648.6,17.07086976]
[1753324317423,0.002,3648.7,3648.6,9.51597155]
[1753324319948,0.002,3648.7,3648.6,9.98957155]
[1753324320329,0.002,3648.7,3648.6,9.51597155]
[1753324322366,0.002,3648.7,3648.6,9.65277155]
[1753324322754,0.002,3648.7,3648.6,10.12637155]
[1753324323866,0.002,3648.7,3648.6,9.65277155]
[1753324324777,0.002,3648.7,3648.6,5.48477155]
[1753324324979,0.4684,3648.7,3648.6,0.1368]
[1753324325156,1.2237,3648.7,3648.6,0.1368]
[1753324326986,1.2237,3648.7,3648.6,2.87757728]
[1753324329859,1.2237,3648.7,3648.6,0.1368]
[1753324330095,0.002,3648.7,3648.6,2.87757728]
[1753324330297,0.002,3648.7,3648.6,4.97070951]
[1753324330470,0.002,3648.7,3648.6,4.95742134]
[1753324330795,0.002,3648.7,3648.6,4.48732134]
[1753324333200,1.2249,3648.7,3648.6,0.1368]
[1753324337488,1.2249,3648.7,3648.6,2.87757728]
[1753324337682,0.002,3648.7,3648.6,2.87757728]
[1753324340004,0.4713,3648.7,3648.6,2.87757728]
[1753324340623,0.002,3648.7,3648.6,2.87757728]
[1753324341034,1.3041,3648.7,3648.6,0.1368]
[1753324341214,3.57357995,3648.6,3648.3,0.001]
[1753324341408,0.03426065,3648.5,3648.3,0.001]
[1753324341613,0.50356065,3648.5,3648.3,0.001]
[1753324342002,0.4693,3648.5,3648.3,0.001]
[1753324342741,0.8328,3648.6,3648.4,2.74092752]
[1753324343326,0.4693,3648.5,3648.4,2.74092752]
[1753324343526,0.8328,3648.6,3648.5,2.7408524]
[1753324343703,0.8328,3648.6,3648.4,2.87769976]
[1753324343903,1.3021,3648.6,3648.4,2.87769976]
[1753324344103,0.4693,3648.5,3648.4,2.87769976]
[1753324346139,3.002,3648.7,3648.6,2.74077728]
[1753324346822,0.002,3648.7,3648.6,2.74077728]
[1753324347021,0.002,3648.7,3648.6,3.30272025]
[1753324347333,0.002,3648.7,3648.6,3.43952025]
[1753324347932,0.002,3648.7,3648.6,2.87757728]
[1753324349852,0.002,3648.7,3648.6,0.1368]
[1753324350012,0.4713,3648.7,3648.6,0.1368]
[1753324350440,0.002,3648.7,3648.6,2.87757728]
[1753324354146,0.002,3648.7,3648.6,3.34767728]
[1753324354444,0.002,3648.7,3648.6,4.31168764]
[1753324356650,0.002,3648.7,3648.6,4.32497581]
[1753324357818,0.002,3648.7,3648.6,4.31168764]
[1753324358143,0.002,3648.7,3648.6,4.32497581]
[1753324359543,0.002,3648.7,3648.6,4.87497581]
[1753324359748,0.002,3648.7,3648.6,4.86168764]
[1753324361827,0.002,3648.7,3648.6,4.87497581]
[1753324362155,0.002,3648.7,3648.6,4.86168764]
[1753324364017,0.002,3648.7,3648.6,4.39158764]
[1753324365020,0.002,3648.7,3648.6,4.83048764]
[1753324366059,0.002,3648.7,3648.6,4.84377581]
[1753324367342,0.002,3648.7,3648.6,4.83048764]
[1753324367537,0.002,3648.7,3648.6,4.84377581]
[1753324367937,0.002,3648.7,3648.6,4.83048764]
[1753324368655,0.002,3648.7,3648.6,4.84377581]
[1753324369944,0.002,3648.7,3648.6,4.83048764]
[1753324371952,0.002,3648.7,3648.6,4.84377581]
[1753324372464,0.002,3648.7,3648.6,4.83048764]
[1753324372750,0.002,3648.7,3648.6,4.84377581]
[1753324375420,0.002,3648.7,3648.6,4.83048764]
[1753324375624,0.002,3648.7,3648.6,4.84377581]
[1753324378266,0.002,3648.7,3648.6,4.83048764]
[1753324378586,0.002,3648.7,3648.6,4.84377581]
[1753324379068,0.002,3648.7,3648.6,4.83048764]
[1753324380278,0.002,3648.7,3648.6,4.84377581]